Cogmind - Beta 11 X5 @@@ ROGUE MODE // 2021.06.06 @ 16:19:34 Player: Mares Result: Destroyed by as-62682 with Assembled F-torch Performance ------------- Evolutions (0) 0 Regions Visited (2) 400 Robots Destroyed (39) 195 Value Destroyed (919) 919 Prototype IDs (3) 60 Alien Tech Used (0) 0 Bonus (0) 0 TOTAL SCORE: 1574 Bonus ------- None Cogmind --------- Core Integrity 0/250 Matter 300/300 Energy 244/250 System Corruption 0% Temperature Warm (106) Movement Rolling (155) Ox5 Location -10/Mines Parts ------- > --- POWER (1) -------- Ion Engine > --- PROPULSION (2) --- Aluminum Leg Wheel > --- UTILITY (2) ------ Improved Heat Sink High-capacity Storage Unit > --- WEAPON (2) ------- Beam Cannon Beam Cannon > --- INVENTORY (20) --- Ion Engine Ion Engine Ion Engine Light Ion Engine Light Treads Light Treads Aluminum Leg Aluminum Leg Aluminum Leg Large Storage Unit Large Storage Unit Large Matter Pod (150) Targeting Computer Medium Laser Peak State ------------ > --- POWER ------------ Ion Engine > --- PROPULSION ------- Aluminum Leg Compact Wheel > --- UTILITY ---------- Improved Heat Sink High-capacity Storage Unit > --- WEAPON ----------- Heavy EM Pulse Gun Heavy EM Pulse Gun > --- INVENTORY -------- Ion Engine Light Ion Engine Light Treads Aluminum Leg Large Storage Unit Large Storage Unit Large Matter Pod Medium Laser Beam Cannon Beam Cannon [Rating: 12] Favorites ----------- Power Ion Engine Engine Ion Engine Propulsion Light Treads Treads Light Treads Leg Aluminum Leg Wheel Compact Wheel Utility Improved Heat Sink Device Improved Heat Sink Storage High-capacity Storage Unit Weapon Beam Cannon Energy Gun Heavy EM Pulse Gun Energy Cannon Beam Cannon Ballistic Gun Assault Rifle Build | -11 -10 -10 ------- Run | Scr Mat Min Slots Evolved . | . . . Power . | . . . Propulsion . | . . . Utility . | . . . Weapon . | . . . Parts Attached 25 | 6 10 9 Power 2 | 1 . 1 Engine 2 | 1 . 1 Core . | . . . Reactor . | . . . Propulsion 10 | 2 5 3 Treads 3 | . 2 1 Leg 3 | . 2 1 Wheel 4 | 2 1 1 Hover . | . . . Flight . | . . . Utility 6 | 1 3 2 Device 3 | . 1 2 Storage 3 | 1 2 . Processor . | . . . Hackware . | . . . Protection . | . . . Artifact . | . . . Weapon 7 | 2 2 3 Energy Gun 3 | . 2 1 Energy Cannon 2 | . . 2 Ballistic Gun 2 | 2 . . Ballistic Cannon . | . . . Launcher . | . . . Special Weapon . | . . . Impact Weapon . | . . . Slashing Weapon . | . . . Piercing Weapon . | . . . Special Melee Weapon . | . . . Unidentified Prototypes . | . . . Parts Lost 9 | . 3 6 Power . | . . . Propulsion 5 | . 3 2 Utility 1 | . . 1 Weapon 3 | . . 3 Highest Loss Streak 4 | . 2 4 Average Slot Usage (%) 97 | . 97 99 Engine 14 | . 14 14 Treads 8 | . 14 . Leg 8 | . 5 14 Wheel 10 | . 8 12 Device 12 | . 11 13 Storage 14 | . 14 14 Energy Gun 8 | . 13 . Energy Cannon 10 | . . 27 Ballistic Gun 9 | . 14 . Naked Turns . | . . . Heaviest Build 52 | 14 52 52 Greatest Support 40 | 32 40 20 Greatest Overweight (x) 5 | . 3 5 Average Overweight (x) 2 | . 1 4 Largest Inventory Capacity 20 | 8 20 20 Average Capacity 18 | 6 18 20 Most Carried 15 | 6 15 15 Average Carried 10 | 2 9 12 Final Capacity 20 | 8 20 20 Final Carried 15 | 6 15 14 Class Distribution -------------------- 100% | Mutant Dominant Class ---------------- Mutant | -10/Materials Mutant | -10/Mines Resources | -11 -10 -10 ----------- Run | Scr Mat Min Matter Collected 840 | 188 577 75 Remotely . | . . . Salvage Created 1289 | . 781 508 Parts 79 | . 58 21 Haulers Intercepted 1 | . 1 . Recyclers Shooed 4 | . 4 . Parts Field Recycled . | . . . Retrieved Matter . | . . . Parts Self-Destructed . | . . . Prevented . | . . . Kills | -11 -10 -10 ------- Run | Scr Mat Min Combat Hostiles Destroyed 26 | . 14 12 Guns 12 | . 12 . Cannons 11 | . . 11 AOE 2 | . 2 . Classes Destroyed 10 | . 9 1 Worker 3 | . 3 . Builder 1 | . 1 . Hauler 1 | . 1 . Recycler 1 | . 1 . Mechanic 1 | . 1 . Operator 4 | . 4 . Watcher 3 | . 3 . Swarmer 6 | . 6 . Grunt 19 | . 8 11 Assembled 1 | . . 1 Best Kill Streak 7 | . 7 3 Combat Bots Only 3 | . 3 3 Max Kills in Single Turn 3 | . 3 1 Gunslinging . | . . . Exploded 2 | . 2 . Melee . | . . . Uniques/NPCs Destroyed . | . . . Combat | -11 -10 -10 -------- Run | Scr Mat Min Damage Taken 1364 | . 696 668 Core 251 | . 117 134 Absorbed by Shields . | . . . Core Remaining (%) 100 | 100 . . Volleys Fired 127 | . 85 42 Largest 2 | . 2 2 Hottest 120 | . 90 120 Shots Fired 254 | . 170 84 Gun 182 | . 170 12 Cannon 72 | . . 72 Launcher . | . . . Special . | . . . Kinetic 90 | . 90 . Thermal 72 | . . 72 Explosive . | . . . Electromagnetic 92 | . 80 12 Robot Hit Streak 9 | . 9 9 Robot Miss Streak 4 | . 4 4 Penetration Max . | . . . Secondary Targets 1 | . 1 . Max Gunslinging Chain 1 | . 1 . Shots Hit Robots 136 | . 90 46 Core Hits 55 | . 39 16 Critical Kills 1 | . 1 . Critical Parts Destroyed 1 | . 1 . Critical Strikes 5 | . 5 . Destroy 2 | . 2 . Corrupt 3 | . 3 . Melee Attacks . | . . . Impact . | . . . Slashing . | . . . Piercing . | . . . Sneak Attacks . | . . . Combat Hostiles . | . . . Follow-up Attacks . | . . . Damage Inflicted 2567 | . 1637 930 Guns 1570 | . 1382 188 Cannons 609 | . . 609 Explosions 388 | . 255 133 Melee . | . . . Ramming . | . . . Kinetic 750 | . 750 . Thermal 997 | . 255 742 Explosive . | . . . Electromagnetic 820 | . 632 188 Impact . | . . . Slashing . | . . . Piercing . | . . . Highest Corruption . | . . . Average Corruption . | . . . Corruption Purged . | . . . Overload Shots . | . . . Overflow Damage 66 | . 28 38 Projectiles . | . . . Explosions 66 | . 28 38 Melee . | . . . Knockbacks . | . . . Impact . | . . . Kinetic . | . . . Secondary . | . . . Self-Inflicted Damage 235 | . 146 89 Shots 4 | . 2 2 Rammed . | . . . Targets Rammed . | . . . Kicked . | . . . Crushed . | . . . Highest Temperature 318 | . 20 318 Average Temperature 89 | . 5 96 Received Heat Transfer 589 | . 216 373 Effects 1 | . . 1 Energy Bleed 1 | . . 1 Siege Activations . | . . . Robots Corrupted 1 | . . 1 Combat Hostiles 1 | . . 1 Parts Fried 7 | . 6 1 Impact Corruptions . | . . . Robots Melted . | . . . Combat Hostiles . | . . . Parts Melted 3 | . . 3 Heat Transferred 1695 | . 250 1445 Parts Sabotaged . | . . . Parts Stolen . | . . . Parts Stripped . | . . . Power Chain Reactions 4 | . 2 2 Missiles Intercepted . | . . . Alert | -11 -10 -10 ------- Run | Scr Mat Min Peak Influence 214 | . 214 178 Initial 73 | . . 73 Average 90 | . 90 97 Maximum Alert Level 1 | . 1 . Low Security (%) 98 | 100 97 100 Level 1 1 | . 2 . Level 2 . | . . . Level 3 . | . . . Level 4 . | . . . Level 5 . | . . . High Security . | . . . Max Security . | . . . Squads Dispatched 5 | . 5 . Investigation 2 | . 2 . Extermination . | . . . Reinforcement 3 | . 3 . Assault . | . . . Garrison . | . . . Intercept . | . . . Construction Impeded . | . . . Haulers Reinforced . | . . . Cargo Convoy Interrupts . | . . . Stealth | -11 -10 -10 --------- Run | Scr Mat Min Distress Signals 2 | . 2 . Communications Jammed . | . . . Distress Signals . | . . . Times Spotted 46 | . 33 13 Peak Tracking Total 4 | . 4 2 Tactical Retreats . | . . . Traps | -11 -10 -10 ------- Run | Scr Mat Min Traps Triggered 2 | . 2 . Indirectly . | . . . Trap Hack Attempts . | . . . Triggered . | . . . Disarmed . | . . . Reprogrammed . | . . . Reused . | . . . Traps Extracted . | . . . Installed . | . . . Triggered . | . . . Machines | -11 -10 -10 ---------- Run | Scr Mat Min Machines Disabled 2 | . 1 1 Max in Single Turn 1 | . 1 1 Machines Sabotaged . | . . . Garrisons Compromised . | . . . Overloaded Fab Kills . | . . . Fab Network Shutdowns . | . . . Hacking | -11 -10 -10 --------- Run | Scr Mat Min Machines Accessed 5 | . 5 . Terminals 5 | . 5 . Fabricators . | . . . Repair Stations . | . . . Recycling Units . | . . . Scanalyzers . | . . . Garrison Access . | . . . Total Hacks 6 | . 6 . Successful 6 | . 6 . Failed . | . . . Catastrophic . | . . . Database Lockouts . | . . . Manual 2 | . 2 . Terminals 6 | . 6 . Fabricators . | . . . Repair Stations . | . . . Recycling Units . | . . . Scanalyzers . | . . . Garrison Access . | . . . Terminal Hacks 5 | . 5 . Prototype ID Bank 1 | . 1 . Branch Access Points 1 | . 1 . Recall Reinforcements 1 | . 1 . Registered Components 1 | . 1 . Zone Layout 1 | . 1 . Fabricator Hacks . | . . . Repair Station Hacks . | . . . Recycling Unit Hacks . | . . . Scanalyzer . | . . . Garrison Access Hacks . | . . . Unauthorized Hacks 1 | . 1 . Terminals 1 | . 1 . Botnet 1 | . 1 . Fabricators . | . . . Repair Stations . | . . . Recycling Units . | . . . Scanalyzers . | . . . Garrison Access . | . . . Data Cores Recovered . | . . . Used . | . . . Hacking Detections 4 | . 4 . Full Trace Events . | . . . Feedback Events . | . . . Feedback Blocked . | . . . Robot Schematics Acquired . | . . . Robots Built . | . . . Matter . | . . . Time . | . . . Total Robot Build Rating . | . . . Part Schematics Acquired . | . . . Parts Built . | . . . Matter . | . . . Time . | . . . Total Part Build Rating . | . . . Parts Repaired . | . . . Time . | . . . Parts Recycled . | . . . Recycled Matter . | . . . Retrieved Matter . | . . . Retrieved Components . | . . . Parts Scanalyzed . | . . . Part Schematics Acquired . | . . . Parts Damaged . | . . . Bothacking | -11 -10 -10 ------------ Run | Scr Mat Min Used RIF Installer . | . . . Robots Hacked . | . . . Non-combat . | . . . Combat . | . . . Robot Hacks Applied . | . . . Relay Couplers Released . | . . . Robots Rewired . | . . . Allies Hacked . | . . . Hacks Repelled . | . . . Allies | -11 -10 -10 -------- Run | Scr Mat Min Total Allies . | . . . Largest Group . | . . . Highest-Rated Group . | . . . Highest-Rated Ally . | . . . Total Orders . | . . . Ally Attacks . | . . . Total Damage . | . . . Kills . | . . . Allies Corrupted . | . . . Allies Melted . | . . . Intel | -11 -10 -10 ------- Run | Scr Mat Min Robot Analysis Total . | . . . Derelict Logs Recovered 2 | . . 2 Drone Launches . | . . . Drone Recoveries . | . . . Exploration | -11 -10 -10 ------------- Run | Scr Mat Min Turns Passed 2186 | 60 1317 809 Spaces Moved 888 | 47 567 274 Core 2 | 2 . . Treads 264 | . 261 3 Legs 15 | . 12 3 Wheels 607 | 45 294 268 Hover . | . . . Flight . | . . . Fastest Speed 50 | 50 100 155 Average Speed 165 | 97 174 158 Slowest Speed 360 | 100 280 360 Overloaded Moves . | . . . Propulsion Burnouts . | . . . Robots Hopped . | . . . Cave-ins Triggered . | . . . Exploration Rate (%) 46 | 3 90 46 Regions Visited 2 Branch Regions 1 Pre-discovered Areas . | . . . Known Exits Taken 1 | . 1 . Unknown Exits Taken 1 | 1 . . Scrap Searched 2 | . . 2 Spaces Dug . | . . . Terrain Destroyed 31 | . 31 . Melee . | . . . Projectile . | . . . AOE 31 | . 31 . Terrain Rammed . | . . . Walls Destroyed . | . . . Machines Disabled . | . . . Actions | -11 -10 -10 --------- Run | Scr Mat Min Total 1346 | 58 724 564 Wait 282 | . 48 234 Move 886 | 46 566 274 Hop . | . . . Pick Up 21 | 6 11 4 Fast Attach 12 | 6 5 1 Attach 9 | . 3 6 Detach . | . . . Swap 4 | . 2 2 Drop 5 | . 4 1 Fire 127 | . 85 42 Melee . | . . . Ram . | . . . Kick . | . . . Crush . | . . . Escape Stasis . | . . . Rewire . | . . . Trap . | . . . Miscellaneous . | . . . Route ------- -11/Scrapyard -10/Materials (discovered 4 exits: [*Mat x2] / *Min x2) -10/Mines History --------- Turn | Location | Event 10 | -11/Scrapyard | Discovered new exit (range 16) 61 | -11/Scrapyard | Entered Materials 114 | -10/Materials | Discovered new exit (range 11) 322 | -10/Materials | Identified exit to Mines 332 | -10/Materials | Build established: Mutant 454 | -10/Materials | Discovered new exit (range 16) 1209 | -10/Materials | Discovered new exit (range 7) 1378 | -10/Materials | Entered Mines 1382 | -10/Mines | Core integrity fell below 50% 1426 | -10/Mines | Met a Derelict bent on vengeance 1426 | -10/Mines | Lost 4 parts (1n3w) 1591 | -10/Mines | Learned Materials terminal intel 1594 | -10/Mines | Learned Materials emergency access door positions 1692 | -10/Mines | Excavation squad dispatched 1692 | -10/Mines | A large section of the Mines collapsed 1942 | -10/Mines | Excavation squad dispatched 2091 | -10/Mines | Core integrity fell below 20% 2187 | -10/Mines | Destroyed by as-62682 with Assembled F-torch Last Messages --------------- Dispatching escorted excavation squad. Press '.', 'keypad 5' or scroll the mouse wheel to wait a turn. 01694_ K-01 Serf collects debris. 01847_ T-07 Excavator is excavating. 01862_ Sml. Laser melted. 01862_ G-34 Mercenary destroyed. 01890_ K-01 Serf collects debris. 01917_ U-05 Engineer lays Concrete. 01919_ K-01 Serf collects debris. 01942_ ALERT: Derelict activity in mines confirmed. Dispatching additional escorted excavation squad. 01943_ K-01 Serf collects debris. 01950_ R-06 Scavenger collects Aluminum Leg. 01951_ K-01 Serf collects debris. 02091_ G-34 Mercenary destroyed. 02103_ Heat Sink melted. 02103_ G-34 Mercenary destroyed. 02122_ Overheating: Energy bleed (-55). 02126_ Acquired 10 matter. 02179_ as-64392 destroyed. Map ----- +----------------------------------------------------+ | ???# #### ##???????????##### | | ????# ##???????????## ## | | ?????# ##?####?????### # | | ?????## ##?## ##???## # | | ??????### ##??# #??## # | | ????????## #???# #??# # | | ????????## ##???# ##?# | | ???????## #????# #### | | ???????# ##??## | | ???????# #??# | | ???????# #### ##### | | ???????## % #??# | | ????????## %| #?# | | ?????????###### #### ### ## | | ?????#####????# #??# ##? | | ????## ##??## #??## #?? | | ????# #?## ##??## #### ##? | | ????# #?# #######??## ## | | ????# !%### ## ##???# | | ????## [=%## ## ###???# # # | | ?????# =* ## #?????# ## ## | | ?????# = ## #?????# #?###? | | ?????## % ## ##????# #????? | | ??????## a %%#????# #????? | | ???????# %%% #????# #????? | | ???????# @ #### #????# #????? | | ???????## #??# #???? ???? | | ????????## ##??# #???? """ ??? | | ?????????########???# #??? """ ?? | | ????????????????????# ??? """ | | ????????????????????# ??# ### | | ????????????????????# ??#########?? | | ????????????????????# ???????????? | | ????????????????????# ???????????? | | ???????????????????? ???????????? | | ???????????????????? ???????????? | | ???????????????????? ??????????? | | ???????????????????? ## ??????????? | | ???????????????????? #?? ??????????? | | ???????????????????? ??? ??????????? | | ???????????????????? ??????????????? | | ???????????????????? ??????????????? | | ???????????????????????????????????? | | ???????????????????????????????????? | | ???????????????????????????????????? | | ???????????????????????????????????? | | ???????????????????????????????????? | | ???????????????????????????????????? | | ???????????????????????????????????? | | ???????????????????????????????????? | +----------------------------------------------------+ Best States ------------- Heat Dissipation 39 Energy Generation 10 Energy Capacity 250 Matter Stores 300 Matter Capacity 300 Sight Range 16 Terrain Scan Density 10 Evasion (%) 40 Recoil Reduction 2 Item Schematics ----------------- None Robot Schematics ------------------ None Fabricated ------------ Nothing Alien Tech Used ----------------- None Achievements -------------- None Challenges ------------ None Game ------ Seed LayeredDynamicHammer Manual? 0 Play Time 00:18:56 Cumulative 84.7 hours Start 2021.06.06 @ 16:04:53 End 2021.06.06 @ 16:19:34 Sessions 1 Manual Loads 0 Difficulty Rogue Special Mode None Game No. 34 Rogue 34 Adventurer 0 Explorer 0 Win Type - Total 1 Types 1/0/0/0/0/0/0/0/0 Lore% 52 Gallery% 59 Achievement% 48 Wizard Run 0 Options --------- ASCII 0 Keyboard 0 Movement Mouse Keybinds 0 Fullscreen 1 Font 18/SmallcapsGlow Map View 76x50 Tactical HUD 1 Map Filters NONE Filters NONE Steam 1 RUN: 2c5f7d41-97bf-488e-bc53-f0b1bdc73730